bitfinex-derivatives/quotes_BTCF0:USTF0_20241022
["timestamp","ask_amount","ask_price","bid_price","bid_amount"]
[1729574877102,0.002,67587.0,67586.0,0.18719384]
[1729574886213,0.002,67587.0,67586.0,0.28587387]
[1729574886413,0.076012,67587.0,67586.0,0.17587387]
[1729574886614,0.076012,67587.0,67586.0,0.28587387]
[1729574891213,0.002,67587.0,67586.0,0.28587387]
[1729574895919,0.002,67587.0,67586.0,0.28600248]
[1729574899214,0.076012,67587.0,67586.0,0.28600248]
[1729574900714,0.076012,67587.0,67586.0,0.2859905]
[1729574901322,0.076012,67587.0,67586.0,0.18719384]
[1729574907635,0.002,67587.0,67586.0,0.18719384]
[1729574908132,0.002,67587.0,67586.0,0.24622793]
[1729574908527,0.002,67587.0,67586.0,0.18719384]
[1729574909331,0.002,67587.0,67586.0,0.28588887]
[1729574910836,0.002,67587.0,67586.0,0.28588886]
[1729574916250,0.002,67587.0,67586.0,0.18719384]
[1729574919964,0.3608,67603.0,67596.0,0.184002]
[1729574920155,0.074,67598.0,67597.0,0.11]
[1729574921365,0.074,67598.0,67597.0,0.111]
[1729574923157,0.074,67598.0,67597.0,0.114]
[1729574924063,0.074,67598.0,67597.0,0.116]
[1729574924762,0.075,67598.0,67597.0,0.116]
[1729574924963,0.075,67598.0,67597.0,0.21699344]
[1729574925165,0.075,67598.0,67597.0,0.21399344]
[1729574925365,0.076,67598.0,67597.0,0.21699344]
[1729574926263,0.076,67598.0,67597.0,0.20899344]
[1729574935268,0.076,67598.0,67597.0,0.03299244]
[1729574937074,0.076,67598.0,67597.0,0.10699344]
[1729574939368,0.076,67598.0,67597.0,0.20540741]
[1729574941769,0.076,67598.0,67597.0,0.19740741]
[1729574944076,0.076,67598.0,67597.0,0.19741048]
[1729574946383,0.076,67598.0,67597.0,0.14322073]
[1729574947574,0.076,67598.0,67597.0,0.09899344]
[1729574954485,0.076,67598.0,67597.0,0.19737113]
[1729574957087,0.076,67598.0,67597.0,0.18937113]
[1729574964078,0.002,67598.0,67597.0,0.29937113]
[1729574966193,0.002,67598.0,67597.0,0.38784922]
[1729574966385,0.002,67598.0,67597.0,0.27784922]
[1729574968289,0.002,67598.0,67597.0,0.38784922]
[1729574968591,0.002,67598.0,67597.0,0.27784922]
[1729574969496,0.002,67598.0,67597.0,0.09099344]
[1729574972294,0.002,67598.0,67597.0,0.08299344]
[1729574976388,0.002,67598.0,67597.0,0.18128084]
[1729574983912,0.076,67598.0,67597.0,0.18128084]
[1729574984303,0.076,67598.0,67597.0,0.18138087]
[1729574985003,0.076,67598.0,67597.0,0.21737987]
[1729574987693,0.076,67598.0,67597.0,0.20937987]
[1729574989200,0.076,67598.0,67597.0,0.20940256]
[1729574990096,0.076,67598.0,67597.0,0.2360313]
[1729574991202,0.076,67598.0,67597.0,0.3100323]
[1729574991703,0.076,67598.0,67597.0,0.38061775]
[1729574992008,0.076,67598.0,67597.0,0.27061775]
[1729574995000,0.076,67598.0,67597.0,0.38061775]
[1729574995001,0.002,67598.0,67597.0,0.38061775]
[1729574995308,0.002,67598.0,67597.0,0.27061775]
[1729574996400,0.003,67598.0,67597.0,0.27061775]
[1729574997310,0.003,67598.0,67597.0,0.27462531]
[1729574998604,0.002,67598.0,67597.0,0.27462531]
[1729574998809,0.002,67598.0,67597.0,0.21962974]
[1729574999605,0.002,67598.0,67597.0,0.31825165]
[1729575000705,0.002,67598.0,67597.0,0.40672974]
[1729575003214,0.002,67598.0,67597.0,0.39872974]
[1729575003506,0.002,67598.0,67597.0,0.31025165]
[1729575004811,0.002,67598.0,67597.0,0.42025165]
[1729575005813,0.002,67598.0,67597.0,0.31025165]
[1729575006504,0.002,67598.0,67597.0,0.2706237]
[1729575006906,0.002,67598.0,67597.0,0.3806237]
[1729575010516,0.002,67598.0,67597.0,0.2706237]
[1729575010917,0.002,67598.0,67597.0,0.3806237]
[1729575011322,0.002,67598.0,67597.0,0.32162974]
[1729575013719,0.002,67598.0,67597.0,0.53786233]
[1729575015321,0.3608,67609.0,67607.0,0.07399]
[1729575015523,0.3608,67609.0,67607.0,0.25768204]
[1729575015821,0.3608,67609.0,67608.0,0.07369204]
[1729575016721,0.3618,67609.0,67608.0,0.07369204]
[1729575016921,0.3638,67609.0,67608.0,0.07369204]
[1729575017120,0.3638,67609.0,67608.0,0.073989]
[1729575017121,0.3628,67609.0,67608.0,0.073989]
[1729575017324,0.3618,67609.0,67608.0,0.17252145]
[1729575017519,0.3638,67609.0,67608.0,0.17249191]
[1729575018724,0.3628,67609.0,67608.0,0.17649191]
[1729575018919,0.3608,67609.0,67608.0,0.17949191]
[1729575019126,0.3608,67616.0,67611.0,0.073985]
[1729575019319,0.3608,67616.0,67611.0,0.183985]
[1729575019521,0.3608,67616.0,67611.0,0.28222269]
[1729575019725,0.3608,67616.0,67611.0,0.25763172]
[1729575019914,0.3608,67616.0,67611.0,0.35605995]
[1729575020116,0.3608,67616.0,67611.0,0.25763172]
[1729575020317,0.07620328,67612.0,67611.0,0.183985]
[1729575021027,0.07620328,67612.0,67611.0,0.188985]
[1729575022319,0.07620328,67612.0,67611.0,0.21547069]
[1729575022320,0.00221928,67612.0,67611.0,0.21547069]
[1729575022832,0.073972,67623.0,67611.0,0.57627069]
[1729575023128,0.073972,67623.0,67622.0,0.183973]
[1729575024522,0.183972,67623.0,67622.0,0.183973]
[1729575024828,0.183972,67623.0,67622.0,0.073973]
[1729575025434,0.200972,67623.0,67622.0,0.073973]
[1729575026023,0.198972,67623.0,67622.0,0.074973]
[1729575026335,0.196972,67623.0,67622.0,0.185973]
[1729575026531,0.086972,67623.0,67622.0,0.185973]
[1729575027631,0.086972,67623.0,67622.0,0.21319908]
[1729575030431,0.013,67623.0,67622.0,0.21319908]
[1729575033235,0.013,67623.0,67622.0,0.25725366]
[1729575033429,0.086972,67623.0,67622.0,0.25725366]
[1729575033734,0.086972,67623.0,67622.0,0.24925366]
[1729575036833,0.086972,67623.0,67622.0,0.20519908]
[1729575041240,0.086972,67623.0,67622.0,0.09519908]
[1729575041534,0.086972,67623.0,67622.0,0.20519908]
[1729575044836,0.086972,67623.0,67622.0,0.13922608]
[1729575046937,0.086972,67623.0,67622.0,0.21319908]
[1729575047437,0.086972,67623.0,67622.0,0.10319908]
[1729575047636,0.086972,67623.0,67622.0,0.21319908]
[1729575048536,0.447772,67623.0,67622.0,0.21319908]
[1729575049037,0.447772,67623.0,67622.0,0.20519908]
[1729575049237,0.447772,67623.0,67622.0,0.26410405]
[1729575050139,0.447772,67623.0,67622.0,0.20519908]
[1729575051735,0.447772,67623.0,67622.0,0.26408714]
[1729575052137,0.447772,67623.0,67622.0,0.20519908]
[1729575055738,0.086972,67623.0,67622.0,0.20519908]
[1729575055932,0.447772,67623.0,67622.0,0.20519908]
[1729575056733,0.086972,67623.0,67622.0,0.20519908]
[1729575057036,0.447772,67623.0,67622.0,0.20519908]
[1729575058835,0.086972,67623.0,67622.0,0.20519908]
[1729575059345,0.447772,67623.0,67622.0,0.20519908]
[1729575060930,0.086972,67623.0,67622.0,0.20519908]
[1729575061137,0.447772,67623.0,67622.0,0.20519908]
[1729575064540,0.447772,67623.0,67622.0,0.19719908]
[1729575068039,0.086972,67623.0,67622.0,0.19719908]
[1729575068243,0.447772,67623.0,67622.0,0.19719908]
[1729575068643,0.086972,67623.0,67622.0,0.19719908]
[1729575068843,0.447772,67623.0,67622.0,0.19719908]
[1729575071845,0.447772,67623.0,67622.0,0.29528389]
[1729575072750,0.086972,67623.0,67622.0,0.29528389]
[1729575072947,0.447772,67623.0,67622.0,0.29528389]
[1729575074548,0.086972,67623.0,67622.0,0.29528389]
[1729575074850,0.447772,67623.0,67622.0,0.29528389]
[1729575075347,0.447772,67623.0,67622.0,0.19719908]
[1729575076049,0.086972,67623.0,67622.0,0.19719908]
[1729575076254,0.447772,67623.0,67622.0,0.19719908]
[1729575078956,0.086972,67623.0,67622.0,0.19719908]
[1729575079157,0.447772,67623.0,67622.0,0.19719908]
[1729575079856,0.447772,67623.0,67622.0,0.18919908]
[1729575082746,0.086972,67623.0,67622.0,0.18919908]
[1729575082952,0.447772,67623.0,67622.0,0.18919908]
[1729575083545,0.086972,67623.0,67622.0,0.18919908]
[1729575083754,0.447772,67623.0,67622.0,0.18919908]
[1729575085772,0.086972,67623.0,67622.0,0.18919908]
[1729575085966,0.447772,67623.0,67622.0,0.18919908]
[1729575086270,0.447772,67623.0,67622.0,0.00522608]
[1729575086471,0.3738,67623.0,67619.0,0.073977]
[1729575086668,0.3738,67623.0,67622.0,0.11]
[1729575086872,0.447772,67623.0,67622.0,0.183973]
[1729575087563,0.441772,67623.0,67622.0,0.183973]
[1729575087767,0.447772,67623.0,67622.0,0.183973]
[1729575089865,0.441772,67623.0,67622.0,0.183973]
[1729575090071,0.447772,67623.0,67622.0,0.184973]
[1729575093173,0.447772,67623.0,67622.0,0.21161434]
[1729575095170,0.447772,67623.0,67622.0,0.20361434]
[1729575098082,0.3738,67623.0,67622.0,0.20361434]
[1729575098681,0.013,67623.0,67622.0,0.20361434]
[1729575098882,0.013,67623.0,67622.0,0.27725104]
[1729575099273,0.013,67623.0,67622.0,0.30144727]
[1729575099475,0.013,67623.0,67622.0,0.20361434]
[1729575110584,0.013,67623.0,67622.0,0.10161434]
[1729575110787,0.013,67623.0,67622.0,0.21161434]
[1729575118091,0.013,67623.0,67622.0,0.10161434]
[1729575118286,0.013,67623.0,67622.0,0.21161434]
[1729575120486,0.4838,67623.0,67622.0,0.27290479]
[1729575120690,0.4838,67623.0,67622.0,0.17524199]
[1729575120890,0.4838,67623.0,67622.0,0.10161434]
[1729575121092,0.3738,67623.0,67622.0,0.10161434]
[1729575121292,0.4838,67623.0,67622.0,0.10161434]
[1729575122901,0.3738,67623.0,67622.0,0.10161434]
[1729575126007,0.3738,67623.0,67622.0,0.09361434]
[1729575126700,0.3738,67623.0,67622.0,0.16724199]
[1729575127592,0.3738,67623.0,67622.0,0.09361434]
[1729575128098,0.013,67623.0,67622.0,0.09361434]
[1729575128600,0.007,67623.0,67622.0,0.09461434]
[1729575128903,0.11,67624.0,67623.0,0.073972]
[1729575130501,0.11,67624.0,67623.0,0.074972]
[1729575135600,0.11,67624.0,67623.0,0.14859965]
[1729575136603,0.11,67624.0,67623.0,0.24645192]
[1729575140307,0.11,67624.0,67623.0,0.2464516]
[1729575141312,0.11,67624.0,67623.0,0.2384516]
[1729575142612,0.11,67624.0,67623.0,0.066972]
[1729575143305,0.435529,67626.0,67623.0,0.001]
[1729575143306,0.47156,67626.0,67623.0,0.001]
[1729575143508,0.4708,67626.0,67625.0,0.07397]
[1729575145102,0.4728,67626.0,67625.0,0.07397]
[1729575146012,0.4738,67626.0,67625.0,0.07397]
[1729575156920,0.4738,67626.0,67625.0,0.06597]
[1729575163727,0.547769,67626.0,67625.0,0.06597]
[1729575171934,0.547769,67626.0,67622.0,0.02664134]
[1729575171935,0.073972,67623.0,67622.0,0.02664134]
[1729575172135,0.073972,67623.0,67615.0,0.07398]
[1729575172136,0.073977,67619.0,67615.0,0.07398]
[1729575172332,0.11,67616.0,67615.0,0.07398]
[1729575172527,0.18398,67616.0,67615.0,0.07398]
[1729575173233,0.18398,67616.0,67615.0,0.07898]
[1729575174433,0.11,67616.0,67615.0,0.07898]
[1729575174618,0.11,67616.0,67615.0,0.07398]
[1729575174825,0.111,67616.0,67615.0,0.07898]
[1729575175225,0.112,67616.0,67615.0,0.08498]
[1729575180132,0.18598,67616.0,67615.0,0.08498]
[1729575180725,0.18598,67616.0,67615.0,0.011]
[1729575197951,0.54678,67616.0,67615.0,0.011]
[1729575198646,0.65678,67616.0,67615.0,0.011]
[1729575198852,0.073989,67608.0,67607.0,0.07362765]
[1729575199039,0.3608,67609.0,67605.0,0.07362765]
[1729575199353,0.073993,67604.0,67603.0,0.073994]
[1729575199545,0.183993,67604.0,67603.0,0.073994]
[1729575200242,0.073994,67603.0,67602.0,0.07362765]
[1729575200563,0.073994,67603.0,67602.0,0.17121305]
[1729575200844,0.434794,67603.0,67601.0,0.073996]
[1729575201056,0.073996,67602.0,67600.0,0.07362765]
[1729575201246,0.073996,67602.0,67596.0,0.184001]
[1729575201247,0.11,67601.0,67599.0,0.07362765]
[1729575201555,0.073996,67602.0,67600.0,0.07362765]
[1729575202137,0.11,67601.0,67599.0,0.14762565]
[1729575202348,0.11,67601.0,67599.0,0.073998]
[1729575202941,0.11,67601.0,67599.0,0.09581069]
[1729575205250,0.183997,67600.0,67599.0,0.02181269]
[1729575205450,0.183997,67600.0,67591.0,0.00221915]
[1729575205644,0.184006,67592.0,67591.0,0.00221915]
[1729575206043,0.184006,67592.0,67591.0,0.02347916]
[1729575206245,0.184006,67592.0,67591.0,0.00221915]
[1729575206455,0.184006,67592.0,67591.0,0.00321915]
[1729575207146,0.194006,67592.0,67591.0,0.00221915]
[1729575207355,0.202006,67592.0,67591.0,0.00221915]
[1729575208848,0.195006,67592.0,67591.0,0.00321915]
[1729575209054,0.186006,67592.0,67591.0,0.00321915]
[1729575210452,0.186006,67592.0,67591.0,0.10109343]
[1729575211352,0.186006,67592.0,67591.0,0.18921761]
[1729575211742,0.186006,67592.0,67591.0,0.10109343]
[1729575212240,0.186006,67592.0,67591.0,0.18920809]
[1729575213052,0.186006,67592.0,67591.0,0.10109343]
[1729575213255,0.186006,67592.0,67591.0,0.18920045]
[1729575215750,0.186006,67592.0,67591.0,0.10109343]
[1729575217356,0.186006,67592.0,67591.0,0.001]
[1729575225359,0.186006,67592.0,67591.0,0.09843286]
[1729575227459,0.186006,67592.0,67591.0,0.18653988]
[1729575227961,0.186006,67592.0,67591.0,0.09843286]
[1729575228164,0.186006,67592.0,67591.0,0.18653988]
[1729575228361,0.186006,67592.0,67591.0,0.18669415]
[1729575229161,0.186006,67592.0,67591.0,0.09858713]
[1729575230360,0.186006,67592.0,67591.0,0.21486279]
[1729575230566,0.186006,67592.0,67591.0,0.09858713]
[1729575231158,0.186006,67592.0,67591.0,0.18694837]
[1729575232361,0.186006,67592.0,67591.0,0.001]
[1729575236662,0.296006,67592.0,67591.0,0.001]
[1729575236858,0.546806,67592.0,67591.0,0.001]
[1729575240361,0.546806,67592.0,67591.0,0.09894307]
[1729575246667,0.546806,67592.0,67591.0,0.09891129]
[1729575248471,0.546806,67592.0,67591.0,0.001]
[1729575254567,0.546806,67592.0,67591.0,0.17262596]
[1729575254877,0.546806,67592.0,67591.0,0.09892718]
[1729575255178,0.546806,67592.0,67591.0,0.17262804]
[1729575255478,0.546806,67592.0,67591.0,0.001]
[1729575262471,0.546806,67592.0,67591.0,0.09897733]
[1729575263782,0.546806,67592.0,67591.0,0.21573397]
[1729575264077,0.546806,67592.0,67591.0,0.09897733]
[1729575264280,0.546806,67592.0,67591.0,0.21573823]
[1729575266485,0.546806,67592.0,67591.0,0.21576806]
[1729575266786,0.546806,67592.0,67591.0,0.21578994]
[1729575270589,0.546806,67592.0,67591.0,0.001]
[1729575277791,0.546806,67592.0,67591.0,0.09895988]
[1729575285696,0.546806,67592.0,67591.0,0.001]
[1729575292703,0.546806,67592.0,67591.0,0.09900127]
[1729575298418,0.656806,67592.0,67591.0,0.09900127]
[1729575298719,0.546806,67592.0,67591.0,0.001]
[1729575304014,0.436806,67592.0,67591.0,0.001]
[1729575304314,0.546806,67592.0,67591.0,0.001]
[1729575307824,0.546806,67592.0,67591.0,0.09893387]
[1729575308316,0.436806,67592.0,67591.0,0.09893387]
[1729575308522,0.546806,67592.0,67591.0,0.17294087]
[1729575310014,0.546806,67592.0,67591.0,0.09893387]
[1729575310522,0.546806,67592.0,67591.0,0.09093387]
[1729575311420,0.546806,67592.0,67591.0,0.16467037]
[1729575311920,0.546806,67592.0,67591.0,0.16466975]
[1729575312325,0.546806,67592.0,67591.0,0.09093387]
[1729575312515,0.074009,67589.0,67588.0,0.07401]
[1729575312715,0.184009,67589.0,67588.0,0.07401]
[1729575314426,0.074011,67588.0,67587.0,0.22015748]
[1729575314616,0.074011,67588.0,67587.0,0.18416948]
[1729575315424,0.075011,67588.0,67587.0,0.18416948]
[1729575315829,0.075011,67588.0,67587.0,0.09567029]
[1729575315830,0.076011,67588.0,67587.0,0.09567029]
[1729575316027,0.076011,67588.0,67587.0,0.02165829]
[1729575316220,0.074012,67587.0,67586.0,0.00018084]
[1729575318425,0.075012,67587.0,67586.0,0.00018084]
[1729575318826,0.075012,67587.0,67586.0,0.02233304]
[1729575319222,0.076012,67587.0,67586.0,0.02233304]
[1729575319824,0.076012,67587.0,67586.0,0.13908116]
[1729575323936,0.076012,67587.0,67586.0,0.02233304]
[1729575325734,0.076012,67587.0,67586.0,0.01933304]
[1729575326039,0.074013,67586.0,67585.0,0.04424255]
[1729575326237,0.184013,67586.0,67585.0,0.04424255]
[1729575326737,0.18413661,67586.0,67585.0,0.04424255]
[1729575327034,0.18413661,67586.0,67585.0,0.11825655]
[1729575328033,0.18413661,67586.0,67585.0,0.04424255]
[1729575328938,0.18413661,67586.0,67585.0,0.06597808]
[1729575329634,0.18413661,67586.0,67585.0,0.13999331]
[1729575329835,0.18413661,67586.0,67585.0,0.09574953]
[1729575330039,0.18413661,67586.0,67585.0,0.13999319]
[1729575330835,0.18413661,67586.0,67585.0,0.19368283]
[1729575332140,0.07413661,67586.0,67585.0,0.19368283]
[1729575333338,0.18413661,67586.0,67585.0,0.11966883]
[1729575333634,0.18413661,67586.0,67585.0,0.20820355]
[1729575333635,0.54493661,67586.0,67585.0,0.20820355]
[1729575334247,0.54493661,67586.0,67585.0,0.11969534]
[1729575337143,0.54493661,67586.0,67585.0,0.20820149]
[1729575338934,0.43493661,67586.0,67585.0,0.02173553]
[1729575339242,0.074015,67584.0,67583.0,0.16900591]
[1729575340037,0.074015,67584.0,67583.0,0.24302191]
[1729575340341,0.074015,67584.0,67583.0,0.074016]
[1729575341343,0.085015,67584.0,67583.0,0.074016]
[1729575342034,0.094015,67584.0,67583.0,0.074016]
[1729575346056,0.094015,67584.0,67583.0,0.28902261]
[1729575348550,0.094015,67584.0,67583.0,0.28894339]
[1729575353555,0.094015,67584.0,67583.0,0.28895527]
[1729575353957,0.094015,67584.0,67583.0,0.074016]
[1729575361059,0.094015,67584.0,67583.0,0.28903307]
[1729575362154,0.094015,67584.0,67583.0,0.28899777]
[1729575365762,0.075015,67584.0,67583.0,0.28899777]
[1729575365961,0.076015,67584.0,67583.0,0.28899777]
[1729575376177,0.076015,67584.0,67583.0,0.13303599]
[1729575377077,0.076015,67584.0,67583.0,0.074016]
[1729575377574,0.002,67584.0,67583.0,0.074016]
[1729575377768,0.074005,67593.0,67584.0,0.44388]
[1729575377971,0.074001,67597.0,67596.0,0.074002]
[1729575378270,0.3608,67602.0,67599.0,0.073997]
[1729575378271,0.4708,67602.0,67599.0,0.073997]
[1729575378472,0.47156,67602.0,67600.0,0.11]
[1729575378671,0.00227692,67601.0,67600.0,0.183997]
[1729575379883,0.00327692,67601.0,67600.0,0.183997]
[1729575381480,0.00427692,67601.0,67600.0,0.186997]
[1729575381992,0.00327692,67601.0,67600.0,0.185997]
[1729575382276,0.00427692,67601.0,67600.0,0.186997]
[1729575382493,0.00427692,67601.0,67600.0,0.20885642]
[1729575382779,0.00100001,67601.0,67600.0,0.20885642]
[1729575382971,0.183983,67613.0,67612.0,0.073984]
[1729575383369,0.073983,67613.0,67612.0,0.073984]
[1729575383976,0.0022188,67616.0,67615.0,0.073981]
[1729575384177,0.073975,67621.0,67620.0,0.073975]
[1729575384481,0.073975,67621.0,67620.0,0.183975]
[1729575385185,0.434775,67621.0,67620.0,0.183975]
[1729575385678,0.434775,67621.0,67620.0,0.184975]
[1729575385887,0.434775,67621.0,67620.0,0.185975]
[1729575386781,0.544775,67621.0,67620.0,0.075975]
[1729575387176,0.544775,67621.0,67620.0,0.067975]
[1729575387579,0.544775,67621.0,67620.0,0.20003591]
[1729575388881,0.544775,67621.0,67620.0,0.06814721]
[1729575389089,0.544775,67621.0,67620.0,0.02406091]
[1729575389384,0.544775,67621.0,67620.0,0.002]
[1729575390682,0.073988,67609.0,67608.0,0.073988]
[1729575390992,0.183988,67609.0,67608.0,0.073988]
[1729575391393,0.183988,67609.0,67608.0,0.09579765]
[1729575391884,0.183988,67609.0,67608.0,0.09779765]
[1729575391885,0.184988,67609.0,67608.0,0.09779765]
[1729575392587,0.185988,67609.0,67608.0,0.20879765]
[1729575394088,0.002,67609.0,67608.0,0.20879765]
[1729575402593,0.002,67609.0,67608.0,0.20079765]
[1729575402789,0.002,67609.0,67608.0,0.09079765]
[1729575404399,0.002,67609.0,67608.0,0.13485258]
[1729575405304,0.002,67609.0,67608.0,0.09079765]
[1729575406397,0.002,67609.0,67608.0,0.14957939]
[1729575406696,0.002,67609.0,67608.0,0.14959352]
[1729575407293,0.075988,67609.0,67608.0,0.09079765]
[1729575412205,0.075988,67609.0,67608.0,0.16455128]
[1729575412408,0.075988,67609.0,67608.0,0.18765424]
[1729575413306,0.075988,67609.0,67608.0,0.09079765]
[1729575417911,0.075988,67609.0,67608.0,0.08279765]
[1729575419709,0.075988,67609.0,67608.0,0.02480965]
[1729575421310,0.075988,67609.0,67608.0,0.12163002]
[1729575421500,0.075988,67609.0,67608.0,0.21004714]
[1729575421700,0.075988,67609.0,67608.0,0.12163002]
[1729575421909,0.075988,67609.0,67608.0,0.21004714]
[1729575422103,0.075988,67609.0,67608.0,0.57084714]
[1729575423111,0.075988,67609.0,67608.0,0.21005572]
[1729575423816,0.075988,67609.0,67608.0,0.12163002]
[1729575424911,0.075988,67609.0,67608.0,0.23163002]
[1729575425213,0.075988,67609.0,67608.0,0.12163002]
[1729575427210,0.075988,67609.0,67608.0,0.19561902]
[1729575427517,0.002,67609.0,67608.0,0.30561902]
[1729575428308,0.002,67609.0,67608.0,0.20879865]
[1729575433317,0.002,67609.0,67608.0,0.20079865]
[1729575434416,0.075988,67609.0,67608.0,0.20079865]
[1729575434816,0.075988,67609.0,67608.0,0.24503161]
[1729575435213,0.075988,67609.0,67608.0,0.20079865]
[1729575443732,0.075988,67609.0,67608.0,0.29830195]
[1729575444228,0.075988,67609.0,67608.0,0.09079865]
[1729575444530,0.075988,67609.0,67608.0,0.20079865]
[1729575446832,0.075988,67609.0,67608.0,0.12680965]
[1729575447735,0.075988,67609.0,67608.0,0.061039]
[1729575447931,0.075988,67609.0,67608.0,0.12680965]
[1729575448637,0.075988,67609.0,67608.0,0.11880965]
[1729575449032,0.075988,67609.0,67608.0,0.1630381]
[1729575449240,0.075988,67609.0,67608.0,0.11880965]
[1729575449624,0.075988,67609.0,67608.0,0.16303908]
[1729575449930,0.075988,67609.0,67608.0,0.16303877]
[1729575450135,0.075988,67609.0,67608.0,0.11880965]
[1729575451031,0.075988,67609.0,67608.0,0.30466599]
[1729575451236,0.185988,67609.0,67608.0,0.19466599]
[1729575452337,0.075988,67609.0,67608.0,0.30466599]
[1729575453026,0.075988,67609.0,67608.0,0.30470712]
[1729575453737,0.075988,67609.0,67608.0,0.30470312]
[1729575454332,0.075988,67609.0,67608.0,0.37869212]
[1729575455335,0.075988,67609.0,67608.0,0.29022929]
[1729575455836,0.075988,67609.0,67608.0,0.37869745]
[1729575456229,0.075988,67609.0,67608.0,0.29022929]
[1729575456538,0.075988,67609.0,67608.0,0.37869629]
[1729575463041,0.075988,67609.0,67608.0,0.29022929]
[1729575463932,0.075988,67609.0,67608.0,0.29028181]
[1729575464134,0.075988,67609.0,67608.0,0.28228181]
[1729575466241,0.075988,67609.0,67608.0,0.22903356]
[1729575466632,0.075988,67609.0,67608.0,0.25120403]
[1729575470132,0.075988,67609.0,67608.0,0.20696912]
[1729575473246,0.075988,67609.0,67608.0,0.30450212]
[1729575479651,0.075988,67609.0,67608.0,0.29650212]
[1729575481343,0.075988,67609.0,67608.0,0.19896912]
[1729575488350,0.075988,67609.0,67608.0,0.29653411]
[1729575491948,0.002,67609.0,67608.0,0.29653411]
[1729575492148,0.002,67609.0,67608.0,0.29653702]
[1729575494154,0.002,67609.0,67608.0,0.40653702]
[1729575494760,0.002,67609.0,67608.0,0.28853702]
[1729575500162,0.002,67609.0,67608.0,0.2883872]
[1729575500573,0.002,67609.0,67608.0,0.3983872]
[1729575502658,0.002,67609.0,67608.0,0.48681899]
[1729575503269,0.002,67609.0,67608.0,0.30096912]
[1729575509470,0.002,67609.0,67608.0,0.19096912]
[1729575510070,0.002,67609.0,67608.0,0.09615947]
[1729575510259,0.002,67609.0,67608.0,0.20615947]
[1729575511259,0.002,67609.0,67608.0,0.30357442]
[1729575512067,0.002,67609.0,67608.0,0.3035769]
[1729575512460,0.002,67609.0,67608.0,0.41957503]
[1729575512669,0.002,67609.0,67608.0,0.3035769]
[1729575515372,0.002,67609.0,67608.0,0.4196335]
[1729575515873,0.002,67609.0,67608.0,0.3035769]
[1729575516058,0.002,67609.0,67608.0,0.41968105]
[1729575516258,0.002,67609.0,67608.0,0.3035769]
[1729575517570,0.002,67609.0,67608.0,0.41973073]
[1729575518375,0.002,67609.0,67608.0,0.20615947]
[1729575519463,0.002,67609.0,67608.0,0.09615947]
[1729575519768,0.002,67609.0,67608.0,0.20615947]
[1729575525569,0.002,67609.0,67608.0,0.19815947]
[1729575526267,0.002,67609.0,67608.0,0.41202361]
[1729575531977,0.002,67609.0,67608.0,0.41206702]
[1729575533383,0.002,67609.0,67608.0,0.19815947]
[1729575536471,0.002,67609.0,67608.0,0.24239731]
[1729575539083,0.002,67609.0,67608.0,0.19815947]
[1729575539286,0.3608,67624.0,67608.0,0.30815947]
[1729575539584,0.3608,67624.0,67620.0,0.073975]
[1729575539585,0.04093557,67623.0,67620.0,0.073975]
[1729575539783,0.04093557,67623.0,67611.0,0.3608]
[1729575539784,0.3608,67624.0,67616.0,0.42628467]
[1729575540084,0.3608,67624.0,67622.0,0.073973]
[1729575540286,0.3608,67624.0,67611.0,0.83135523]
[1729575540287,0.3608,67624.0,67623.0,0.183972]
[1729575540883,0.3608,67624.0,67623.0,0.175972]
[1729575541088,0.3618,67624.0,67623.0,0.175972]
[1729575542383,0.3638,67624.0,67623.0,0.175972]
[1729575544189,0.3638,67624.0,67623.0,0.20305283]
[1729575544691,0.3638,67624.0,67623.0,0.21105283]
[1729575545785,0.3638,67624.0,67623.0,0.41825418]
[1729575545786,0.003,67624.0,67623.0,0.41825418]
[1729575547488,0.00221839,67638.0,67623.0,0.45428218]
[1729575547686,0.00221839,67638.0,67637.0,0.42613153]
[1729575547875,0.00221839,67638.0,67637.0,0.70495425]
[1729575548081,0.00221839,67638.0,67637.0,0.59493403]
[1729575548282,0.00221839,67638.0,67637.0,0.64613153]
[1729575548483,0.3608,67646.0,67637.0,0.64613153]
[1729575548685,0.3608,67646.0,67644.0,0.11]
[1729575548887,0.3608,67654.0,67644.0,0.11]
[1729575548888,0.073945,67648.0,67644.0,0.11]
[1729575549189,0.3608,67648.0,67643.0,0.04405747]
[1729575549486,0.3608,67648.0,67637.0,0.42613153]
[1729575549487,0.3608,67648.0,67647.0,0.11]
[1729575550885,1.07099,67657.0,67647.0,0.22]
[1729575551086,1.07099,67657.0,67656.0,0.073936]
[1729575551290,1.07099,67657.0,67656.0,0.183936]
[1729575551884,1.08499,67657.0,67656.0,0.183936]
[1729575552184,1.08499,67657.0,67656.0,0.073936]
[1729575552381,1.08499,67657.0,67656.0,0.183936]
[1729575552586,1.09599,67657.0,67656.0,0.183936]
[1729575552886,1.09599,67657.0,67656.0,0.21076482]
[1729575553285,1.09599,67657.0,67656.0,0.10076482]
[1729575553486,1.09599,67657.0,67656.0,0.183936]
[1729575553896,1.09399,67657.0,67656.0,0.183936]
[1729575554099,1.003423,67657.0,67656.0,0.54935965]
[1729575554296,1.003423,67657.0,67656.0,0.544736]
[1729575554485,1.003423,67657.0,67656.0,0.654736]
[1729575555089,0.073906,67684.0,67656.0,2.12425162]
[1729575555301,0.0075605,67692.0,67681.0,0.073909]
[1729575555495,0.0075605,67692.0,67682.0,0.22]
[1729575555700,0.0075605,67692.0,67682.0,0.11]
[1729575555997,0.3608,67694.0,67682.0,0.11]
[1729575556590,0.3608,67694.0,67689.0,0.073899]
[1729575556790,0.3608,67694.0,67679.0,0.3608]
[1729575556791,0.3608,67694.0,67693.0,0.11]
[1729575556995,0.80396,67694.0,67693.0,0.11]
[1729575557300,0.3608,67694.0,67692.0,0.11]